[Event "Slovakia Open 2022"]
[Site "Bratislava"]
[Date "2022.10.01"]
[Round "5.1"]
[White "Korobov, Anton"]
[Black "Stocek, Jiri"]
[Result "1/2-1/2"]
[ECO "E11"]
[WhiteElo "2671"]
[BlackElo "2559"]
[Annotator "TA"]
[PlyCount "89"]
[EventDate "2022.09.30"]
[EventCountry "SVK"]
[SourceTitle "playchess.com"]
[Source "ChessBase"]
[SourceQuality "1"]
[TimeControl "2700+10"]

{[%evp 9,89,32,31,39,29,36,41,-12,60,48,56,35,26,16,20,15,22,18,22,22,16,16,6,0,0,4,10,10,6,0,4,7,11,0,0,0,0,0,0,0,0,0,14,14,66,68,198,59,112,66,190,162,318,346,832,756,773,181,181,181,170,0,0,0,0,0,0,0,0,0,0,0,0,0,0,0,0,0,0,0,0,0]} 1. d4 {[%emt 0:00:07]} Nf6 {[%emt 0:00:06]} 2. c4 {[%emt 0:00:02]} e6 {[%emt 0:00:02]} 3. Nf3 {[%emt 0:00:02]} Bb4+ {[%emt 0:00:08]} 4. Nbd2 {[%emt 0:00:03]} a5 {[%emt 0:00:24]} 5. a3 {[%emt 0:01:05]} Be7 {[%emt 0:00:11]} 6. e4 {[%emt 0:00:11] E11: Bogo-Indian.} d5 {[%emt 0:00:36]} 7. Bd3 {[%emt 0:00:28]} c5 {[%emt 0:00:41] [#]} 8. O-O $146 {[%emt 0:02:18]} ({White should try} 8. cxd5 $14 exd5 9. O-O) ({Predecessor:} 8. cxd5 exd5 9. O-O O-O 10. exd5 cxd4 11. Nc4 Bg4 12. h3 Bh5 13. g4 Bg6 14. Bxg6 hxg6 15. Qxd4 Qxd5 16. Qxd5 Nxd5 {½-½ (32) Heimann,A (2574)-Bauer,C (2630) Switzerland 2018}) 8... Nc6 {[%emt 0:01:08]} (8... dxe4 $1 $11 9. Nxe4 cxd4) 9. dxc5 $14 {[%emt 0:02:59]} O-O {[%emt 0:05:37]} 10. cxd5 {[%emt 0:00:31]} exd5 {[%emt 0:00:03]} 11. Qc2 {[%emt 0:00:06]} h6 {[%emt 0:00:23]} 12. h3 {[%emt 0:07:02]} Be6 {[%emt 0:00:46]} 13. b3 {[%emt 0:05:42]} dxe4 {[%emt 0:10:12]} 14. Nxe4 {[%emt 0:00:18]} Qd5 $1 {[%emt 0:00:10]} 15. Nxf6+ {[%emt 0:05:23]} Bxf6 {[%emt 0:00:06]} 16. Rb1 {[%emt 0:00:02]} Nd4 $1 {[%emt 0:04:52]} 17. Nxd4 {[%emt 0:00:28]} Bxd4 {[%emt 0:00:04]} 18. Be3 {[%emt 0:00:24]} Bxe3 $1 {[%emt 0:00:13]} 19. fxe3 {[%emt 0:00:02] next Bh7+ is good for White.} Rfc8 {[%emt 0:00:50]} 20. Rfc1 {[%emt 0:00:52]} Qe5 {[%emt 0:02:17]} 21. Be4 $36 {[%emt 0:01:10][%mdl 2048] White has some pressure.} Rc7 {[%emt 0:00:23]} 22. Kh1 {[%emt 0:01:25]} Re8 {[%emt 0:02:06][%cal Oe6h3]} 23. b4 {[%emt 0:03:41]} axb4 {[%emt 0:05:35]} 24. Rxb4 {[%emt 0:04:29]} Rec8 {[%emt 0:06:25][%cal Rc7c5]} 25. Qd2 {[%emt 0:01:40]} (25. Rxb7 $2 Rxc5 26. Qxc5 (26. Bh7+ $2 Kf8 $19) 26... Rxc5 $19) 25... Rd7 {[%emt 0:00:52]} 26. Qb2 {[%emt 0:00:56]} Qg3 {[%emt 0:01:49]} (26... Qg5 $11) 27. Rxb7 {[%emt 0:00:43]} Rdd8 {[%emt 0:00:22]} (27... Qxe3 $14 28. Rxd7 Bxd7) 28. c6 {[%emt 0:01:55]} (28. Qc3 $18) 28... Bxh3 {[%emt 0:00:37] [#]} ({Black should play} 28... Qxe3 $14 29. Qb1 Qxa3) 29. Bf3 {[%emt 0:02:03] White is more active.} ({Don't go for} 29. gxh3 $2 Qxh3+ 30. Qh2 Qxe3 $19) (29. c7 $1 $16 {[%cal Rc7d8]} Rd7 30. Qc2 (30. gxh3 Qxh3+ 31. Qh2 Qxe3 $11)) 29... Bg4 {[%emt 0:00:56]} (29... Be6 $14) 30. Qe2 {[%emt 0:00:52]} Bxf3 {[%emt 0:00:24]} (30... Be6 31. Kg1 Qd6) 31. Qxf3 $18 {[%emt 0:00:02] Dancing on a razor blade.} Qxf3 {[%emt 0:00:36]} (31... Qg5 32. Qxf7+ Kh8) 32. gxf3 {[%emt 0:00:02][%mdl 4096] Endgame KRR-KRR} Kf8 {[%emt 0:00:12]} 33. Rc4 $2 {[%emt 0:01:06]} (33. c7) 33... Rd6 {[%emt 0:00:29]} 34. c7 {[%emt 0:01:22] Rb8 is the strong threat.} Ke7 {[%emt 0:00:11] [#]} 35. a4 $2 {[%emt 0:00:02]} (35. Rb3 $1 $18) 35... Kd7 $11 {[%emt 0:00:14] The position is equal.} 36. a5 {[%emt 0:00:01]} Rc6 {[%emt 0:00:34]} 37. Rd4+ {[%emt 0:01:02]} Ke7 {[%emt 0:00:17]} 38. Ra4 {[%emt 0:00:25] Threatens to win with a6.} R8xc7 {[%emt 0:00:26]} 39. a6 {[%emt 0:00:22]} Rxb7 {[%emt 0:00:04]} 40. axb7 {[%emt 0:00:01] KR-KR} ({Of course not} 40. Re4+ Kf8 41. axb7 Rb6 $17) 40... Rc1+ {[%emt 0:00:05]} 41. Kg2 {[%emt 0:00:07]} Rb1 {[%emt 0:00:01]} 42. Ra7 {[%emt 0:00:01]} Ke6 {[%emt 0:00:07]} 43. e4 {[%emt 0:00:11]} g5 {[%emt 0:00:05]} 44. Ra6+ {[%emt 0:00:03]} Ke5 {[%emt 0:00:09]} 45. Rxh6 {[%emt 0:00:05] White really could win this.  Weighted Error Value: White=0.31/Black=0.22 (precise)} 1/2-1/2

[Event "Slovakia Open 2022"]
[Site "Bratislava"]
[Date "2022.10.01"]
[Round "5.2"]
[White "Heberla, Bartlomiej"]
[Black "Babula, Vlastimil"]
[Result "1-0"]
[ECO "B62"]
[WhiteElo "2568"]
[BlackElo "2574"]
[Annotator "TA"]
[PlyCount "128"]
[EventDate "2022.09.30"]
[EventCountry "SVK"]
[SourceTitle "playchess.com"]
[Source "ChessBase"]
[SourceQuality "1"]
[TimeControl "2700+10"]

{[%evp 13,128,17,37,10,22,18,43,27,69,66,72,68,65,67,117,87,146,137,137,81,81,87,104,106,103,100,95,74,91,85,87,85,90,90,91,95,88,58,58,56,61,0,0,0,0,0,0,0,0,-62,-30,-231,-218,-291,108,0,0,0,20,13,13,13,41,41,41,41,41,41,69,41,41,33,41,17,17,17,41,41,41,41,41,41,41,31,31,8,31,31,31,31,127,127,127,127,127,31,31,0,127,127,127,127,127,127,127,127,127,31,31,17,31,7,8,8,8,8,31]} 1. e4 {[%emt 0:02:26]} c5 {[%emt 0:00:03]} 2. Nf3 {[%emt 0:00:01]} d6 {[%emt 0:00:01]} 3. d4 {[%emt 0:00:04]} cxd4 {[%emt 0:00:02]} 4. Nxd4 {[%emt 0:00:02]} Nf6 {[%emt 0:00:01]} 5. Nc3 {[%emt 0:00:02]} Nc6 {[%emt 0:00:02]} 6. Bg5 {[%emt 0:00:42]} e6 {[%emt 0:00:01]} 7. Bb5 {[%emt 0:00:02]} Bd7 {[%emt 0:00:37]} 8. Qd3 {[%emt 0:00:02] B62: Sicilian: Richter-Rauzer: 6...e6: Unusual White 7th moves.} Be7 {[%emt 0:05:13] 8...h6 is the modern continuation.} 9. O-O-O {[%emt 0:01:17]} Qc7 {[%emt 0:02:13] [#]} 10. Qg3 $146 {[%emt 0:12:54] White is slightly better.} ({Predecessor:} 10. Rhe1 O-O 11. Bxc6 bxc6 12. Nb3 e5 13. Bxf6 gxf6 14. f4 Kh8 15. f5 a5 16. a4 {0-1 (43) Stankovic,M (2439)-Dimic,P (2352) Vrnjacka Banja 2022}) 10... a6 {[%emt 0:02:58]} 11. Bxc6 {[%emt 0:01:12]} bxc6 {[%emt 0:00:33]} 12. e5 {[%emt 0:01:43] White has more active pieces. The black rooks are badly placed.} dxe5 {[%emt 0:00:52] White must now prevent ...Nh5.} 13. Nf3 {[%emt 0:00:05]} h6 {[%emt 0:07:17]} (13... O-O $14) 14. Be3 {[%emt 0:00:30]} ({Wrong is} 14. Nxe5 $2 Nh5 15. Bxe7 Nxg3 $19) 14... Nd5 {[%emt 0:01:47]} (14... O-O-O $142) 15. Qxg7 $16 {[%emt 0:02:26]} O-O-O {[%emt 0:00:02]} 16. Qxe5 {[%emt 0:10:13]} (16. Rd3 $142) 16... Qxe5 {[%emt 0:00:34]} 17. Nxe5 {[%emt 0:00:03]} Nxc3 {[%emt 0:00:54]} 18. bxc3 {[%emt 0:01:44]} ({But not} 18. Rxd7 $6 Rxd7 19. Nxd7 Nxa2+ 20. Kb1 Nc3+ 21. bxc3 Kxd7 $11) 18... Be8 {[%emt 0:00:36]} 19. Rxd8+ {[%emt 0:00:03]} Bxd8 {[%emt 0:00:06]} 20. Bc5 {[%emt 0:03:40]} Bc7 {[%emt 0:01:45]} 21. Nc4 {[%emt 0:00:04]} Rg8 {[%emt 0:00:02]} 22. g3 {[%emt 0:00:17]} Rg5 {[%emt 0:01:23]} 23. Bd6 {[%emt 0:01:20]} f6 {[%emt 0:01:53]} 24. Bxc7 {[%emt 0:02:02]} Kxc7 {[%emt 0:00:02][%mdl 4096] Endgame KRB-KRN} 25. Rd1 {[%emt 0:00:02]} Rh5 {[%emt 0:02:51]} 26. h4 {[%emt 0:00:10]} Rc5 {[%emt 0:01:09]} 27. Nd6 {[%emt 0:00:39]} (27. Ne3 $14) 27... Bg6 $11 {[%emt 0:00:48]} 28. c4 {[%emt 0:00:02]} Re5 {[%emt 0:00:19]} 29. Rd2 {[%emt 0:00:10] Against Re2} h5 {[%emt 0:01:48]} 30. Kb2 {[%emt 0:01:07]} c5 {[%emt 0:01:24]} 31. Ka3 {[%emt 0:00:01]} (31. a3 $11) 31... Re1 $15 {[%emt 0:00:09]} 32. Ka4 $2 {[%emt 0:00:02]} (32. Kb2 $11) 32... Rb1 $1 $19 {[%emt 0:00:20] Strongly threatening ...Rb6.} 33. f3 {[%emt 0:04:46] [#]} Rf1 $2 {[%emt 0:00:38] [#]} (33... f5 $1 $19 {...Rb6 is the strong threat.} 34. Ka5 Rb6) 34. Ne4 {[%emt 0:00:11]} (34. Ka5 $1 $16 {[%cal Ra5a6]}) 34... Bxe4 $11 {[%emt 0:01:41]} 35. fxe4 {[%emt 0:00:01] KR-KR} Rf3 {[%emt 0:00:01]} 36. Rd3 {[%emt 0:00:38]} Rf2 {[%emt 0:00:02]} 37. Kb3 {[%emt 0:00:18]} Re2 {[%emt 0:04:28]} 38. Rf3 {[%emt 0:00:00]} Rxe4 {[%emt 0:00:02]} 39. Rxf6 {[%emt 0:00:00]} Re3+ {[%emt 0:00:05]} 40. c3 {[%emt 0:00:00]} Kd6 {[%emt 0:02:42]} 41. Rh6 {[%emt 0:00:00]} (41. Rg6 $5 {[%cal Rg6g5]}) 41... Rxg3 {[%emt 0:00:13]} 42. Rxh5 {[%emt 0:00:00]} Rh3 {[%emt 0:00:08]} 43. Rh8 {[%emt 0:00:17]} e5 {[%emt 0:00:44]} 44. h5 {[%emt 0:00:21][%cal Bh4h5,Bh5h6,Bh6h7][%mdl 32]} e4 {[%emt 0:00:48]} 45. h6 {[%emt 0:00:08]} Kc7 {[%emt 0:00:01]} 46. h7 {[%emt 0:00:25] Hoping for Ra8.} Kb7 {[%emt 0:00:01] Prevents Ra8.} 47. Ka4 {[%emt 0:00:19]} Rh2 {[%emt 0:01:49]} 48. a3 {[%emt 0:00:08]} e3 {[%emt 0:00:24]} 49. Ka5 {[%emt 0:00:23]} e2 {[%emt 0:00:06]} (49... Rh3 {keeps more tension.} 50. a4 e2 51. Re8 Rxh7 52. Rxe2 Rh4) 50. Re8 {[%emt 0:00:01]} Rxh7 {[%emt 0:00:02]} 51. Rxe2 {[%emt 0:00:01] aiming for Rb2+.} Rh6 {[%emt 0:00:54]} (51... Rh4 $14) 52. Re7+ $16 {[%emt 0:00:10]} Kb8 {[%emt 0:00:01]} 53. Re5 {[%emt 0:00:19]} Rc6 {[%emt 0:00:01]} 54. Ka4 {[%emt 0:00:06]} ({White should try} 54. Rg5 $16) 54... Kb7 $14 {[%emt 0:00:11]} 55. Ka5 {[%emt 0:00:06]} ({White should play} 55. Rg5 $14) 55... Kb8 $1 $16 {[%emt 0:00:02]} 56. Re8+ {[%emt 0:00:07]} Kb7 {[%emt 0:00:01]} 57. Re7+ {[%emt 0:00:01]} Kb8 {[%emt 0:00:01]} 58. Ka4 {[%emt 0:00:05]} Rb6 {[%emt 0:00:13]} 59. Re5 {[%emt 0:00:03]} Rc6 {[%emt 0:00:01]} 60. Kb3 {[%emt 0:00:07]} (60. Ka5 $16) 60... Kb7 $14 {[%emt 0:00:01]} 61. Kc2 {[%emt 0:00:06]} Kb6 {[%emt 0:00:03]} 62. Kd3 {[%emt 0:00:01]} Rh6 {[%emt 0:00:15] The position is equal.} 63. Ke4 {[%emt 0:00:06]} Kc6 {[%emt 0:00:37]} 64. Rf5 {[%emt 0:00:13]} Re6+ {[%emt 0:00:36] Weighted Error Value: White=0.25 (precise) /Black=0.17 (very precise)} 1-0

[Event "Slovakia Open 2022"]
[Site "Bratislava"]
[Date "2022.10.01"]
[Round "5.3"]
[White "Kraus, Tomas"]
[Black "Laurusas, Tomas"]
[Result "0-1"]
[ECO "B10"]
[WhiteElo "2479"]
[BlackElo "2563"]
[Annotator "TA"]
[PlyCount "81"]
[EventDate "2022.09.30"]
[EventCountry "SVK"]
[SourceTitle "playchess.com"]
[Source "ChessBase"]
[SourceQuality "1"]
[TimeControl "2700+10"]

{[%evp 12,81,10,-6,-8,-20,-10,-8,-5,-12,-20,-5,-16,-20,-17,-17,-12,-17,-18,-22,-18,-28,-24,-36,10,0,0,0,63,45,37,0,0,0,0,0,0,0,0,0,0,0,0,0,0,0,0,0,0,-183,-168,-325,-328,-322,-286,-321,-277,-268,-268,-375,-371,-451,-441,-502,-491,-568,-563,-572,-572,-552,-548,-537]} 1. c4 {[%emt 0:02:20]} c6 {[%emt 0:00:13]} 2. e4 {[%emt 0:00:26]} d5 {[%emt 0:00:01]} 3. cxd5 {[%emt 0:00:01]} cxd5 {[%emt 0:00:02]} 4. exd5 {[%emt 0:00:01]} Nf6 {[%emt 0:00:02]} 5. Bb5+ {[%emt 0:00:03]} Nbd7 {[%emt 0:00:02]} 6. Nc3 {[%emt 0:00:01]} a6 {[%emt 0:00:21] 6...g6 deserves study.} 7. Be2 {[%emt 0:00:01]} b5 {[%emt 0:05:08][%cal Bb7b5,Bb5b4][%mdl 32] B10: Caro-Kann: 2 d3 and 2 c4.} 8. Nf3 {[%emt 0:01:58]} b4 {[%emt 0:04:38]} 9. Na4 {[%emt 0:00:54]} Nxd5 {[%emt 0:00:03] The position is equal.} 10. d4 {[%emt 0:01:14]} e6 {[%emt 0:00:10]} 11. Bg5 {[%emt 0:06:32]} Be7 {[%emt 0:04:15]} 12. Bxe7 {[%emt 0:00:39]} Qxe7 {[%emt 0:00:02]} 13. O-O {[%emt 0:01:15]} O-O {[%emt 0:00:04]} 14. Qd2 $1 {[%emt 0:05:42]} Bb7 {[%emt 0:00:13]} 15. Rac1 {[%emt 0:01:29] [#] Inhibits Bc6.} Rfd8 $146 {[%emt 0:01:01]} ({Predecessor:} 15... Qf6 16. g3 Rad8 17. Rfd1 a5 18. Nc5 Nxc5 19. Rxc5 Nc3 20. bxc3 Bxf3 21. Bxf3 Qxf3 {½-½ (31) Krakovsky,P (2166)-Relyea,A (2296) ICCF email 2020}) 16. Nc5 {[%emt 0:09:59]} Nxc5 {[%emt 0:02:01]} 17. Rxc5 {[%emt 0:00:01]} Qf6 {[%emt 0:01:54]} (17... Qd6 $15) 18. g3 {[%emt 0:02:19]} Ne7 {[%emt 0:05:01]} 19. Ne5 {[%emt 0:06:11]} Nf5 {[%emt 0:03:02]} ({Better is} 19... b3 $11) 20. Qxb4 $14 {[%emt 0:00:15]} Rab8 {[%emt 0:00:01][%cal Ob7g2]} 21. Qc3 {[%emt 0:01:58]} Nxd4 {[%emt 0:00:20][%cal Rd4e2] [#]} 22. Bg4 {[%emt 0:00:51]} Qg5 {[%emt 0:06:25][%cal Og5g4] aiming for ...Qxg4!} 23. Re1 {[%emt 0:01:35]} h5 $40 {[%emt 0:05:14][%mdl 128] Black mounts an attack.} 24. h4 {[%emt 0:00:25]} Qh6 {[%emt 0:02:22]} 25. Bd1 {[%emt 0:00:18]} f6 {[%emt 0:00:23]} 26. Nf3 {[%emt 0:00:53]} Bxf3 {[%emt 0:04:04]} 27. Bxf3 {[%emt 0:00:01]} Qd2 {[%emt 0:00:14]} 28. Bxh5 {[%emt 0:01:03]} Rxb2 {[%emt 0:00:01]} 29. Qxd2 {[%emt 0:00:41]} Rxd2 {[%emt 0:00:02]} 30. Ra5 $2 {[%emt 0:00:49]} (30. Rd1 $11 {and White is okay.} Rxa2 31. Bg6) 30... g6 $1 $19 {[%emt 0:00:16]} 31. Bd1 {[%emt 0:00:14]} (31. Bxg6 Nf3+ 32. Kf1 Nxe1 33. Kxe1) 31... Nc6 $1 {[%emt 0:00:14][%csl LRa5,LRd1]} 32. Rxa6 {[%emt 0:00:09] [#] Hoping for Bg4.} Rxd1 {[%emt 0:00:02]} 33. Rxd1 {[%emt 0:00:10]} Rxd1+ {[%emt 0:00:02][%mdl 4096] Endgame KRN-KR} 34. Kg2 {[%emt 0:00:01]} Rc1 {[%emt 0:00:13]} 35. g4 {[%emt 0:00:00]} Rc4 {[%emt 0:02:13]} 36. f3 {[%emt 0:00:16]} Kf7 {[%emt 0:00:02] Black is clearly winning.} 37. a4 {[%emt 0:00:11]} Rc2+ {[%emt 0:00:39]} 38. Kg3 {[%emt 0:00:08]} Rc3 {[%emt 0:00:02]} 39. Kg2 {[%emt 0:00:22]} Ne5 {[%emt 0:00:13]} 40. Ra7+ {[%emt 0:00:08]} Kg8 {[%emt 0:00:18]} 41. a5 {[%emt 0:00:26] Weighted Error Value: White=0.26 (precise) /Black=0.05 (flawless)} 0-1

[Event "Slovakia Open 2022"]
[Site "Bratislava"]
[Date "2022.10.01"]
[Round "5.4"]
[White "Klabis, Rokas"]
[Black "Kostolansky, Sebastian Lukas"]
[Result "0-1"]
[ECO "B40"]
[WhiteElo "2396"]
[BlackElo "2398"]
[Annotator "TA"]
[PlyCount "78"]
[EventDate "2022.09.30"]
[EventCountry "SVK"]
[SourceTitle "playchess.com"]
[Source "ChessBase"]
[SourceQuality "1"]
[TimeControl "2700+10"]

{[%evp 17,78,-8,3,-27,0,-22,-11,-6,0,-35,-26,-25,-24,-30,-39,-42,-35,-40,-31,-35,-29,-79,-17,-92,-87,-103,-84,-102,-90,-114,-112,-96,-43,-185,-184,-165,-125,-125,-66,-57,-12,-22,-12,-18,-8,-24,-11,-112,-86,-1258,-1227,-2237,-2123,-2103,-1969,-2067,-777,-3209,-2333,-29946,-7027,-5389,-5385]} 1. e4 {[%emt 0:00:03]} c5 {[%emt 0:00:02]} 2. Nf3 {[%emt 0:00:05]} e6 {[%emt 0:00:03]} 3. d4 {[%emt 0:00:09]} cxd4 {[%emt 0:00:03]} 4. Nxd4 {[%emt 0:00:02]} Nc6 {[%emt 0:00:11]} 5. Nxc6 {[%emt 0:00:16]} bxc6 {[%emt 0:00:03]} 6. Bd3 {[%emt 0:00:08]} d5 {[%emt 0:02:08]} 7. O-O {[%emt 0:00:04]} Nf6 {[%emt 0:00:02]} 8. Nd2 {[%emt 0:00:28]} Be7 {[%emt 0:00:24]} 9. Qe2 {[%emt 0:00:03]} O-O {[%emt 0:00:10]} 10. Rd1 {[%emt 0:00:15] B40: Sicilian: 2...e6, Unusual lines.} a5 {[%emt 0:01:17] [#]} 11. h3 $146 {[%emt 0:01:35]} ({Predecessor:} 11. Nf3 Bb7 12. c4 Nd7 13. Be3 Qb8 14. Rac1 Rd8 15. cxd5 cxd5 16. exd5 Bxd5 17. Bc4 Nf6 {0-1 (87) Stewart,W (2297)-Najer,E (2658) Las Vegas 2015}) 11... a4 {[%emt 0:06:18]} 12. Nf3 {[%emt 0:02:12] The position is equal.} Qc7 {[%emt 0:01:35]} 13. e5 {[%emt 0:02:40]} (13. Bg5 $5 {[%cal Re4e5]}) 13... Nd7 {[%emt 0:00:03]} 14. c3 {[%emt 0:00:04]} c5 {[%emt 0:02:42]} 15. c4 {[%emt 0:06:53]} Bb7 {[%emt 0:05:13]} 16. cxd5 {[%emt 0:03:23]} Bxd5 {[%emt 0:00:02]} 17. Be4 {[%emt 0:00:03]} Qc6 {[%emt 0:03:44]} 18. Bxd5 {[%emt 0:02:11]} exd5 {[%emt 0:00:03]} 19. Bf4 {[%emt 0:00:02]} (19. Bg5 $11 {remains equal.} Rfe8 20. Qc2) 19... Qe6 {[%emt 0:01:15]} (19... Rfd8 $17) 20. Bg3 {[%emt 0:01:39]} (20. Qd3 $11) 20... Rfb8 {[%emt 0:01:23]} 21. Ne1 {[%emt 0:00:29]} Nf8 {[%emt 0:07:23]} 22. Qc2 {[%emt 0:02:59]} c4 {[%emt 0:03:58][%cal Bc5c4,Bc4c3][%mdl 32]} 23. Nf3 {[%emt 0:00:30]} a3 {[%emt 0:02:03]} 24. bxa3 {[%emt 0:00:42]} Bxa3 {[%emt 0:02:03]} ({Much worse is} 24... Rxa3 $6 25. Nd4 Qg6 26. Nf5 $11) ({Black should try} 24... Rd8 $17 25. Nd4 Qd7) 25. Rab1 {[%emt 0:06:17]} (25. Nd4 $15 Qg6 26. Nf5) 25... Rxb1 $19 {[%emt 0:00:21]} 26. Qxb1 {[%emt 0:00:43]} c3 {[%emt 0:00:48]} 27. Qb3 {[%emt 0:03:27][%csl LRc3,LRd5] [#]} Bb2 {[%emt 0:01:00]} ({Better is} 27... Qc6 $1 $17 {aiming for ...c2.} 28. Nd4 Qc4) 28. Nd4 $15 {[%emt 0:00:28]} Qd7 {[%emt 0:01:54] Hoping for ...Ne6.} 29. Nc2 {[%emt 0:00:06]} Ra5 {[%emt 0:00:32]} 30. Bf4 {[%emt 0:01:42]} h6 {[%emt 0:01:30]} 31. Be3 $1 {[%emt 0:00:36]} Ne6 {[%emt 0:00:13][%cal Od5d4]} 32. Qb8+ {[%emt 0:03:42]} (32. Bb6 $11 {keeps the balance.} Rb5 33. Qa4) 32... Kh7 $17 {[%emt 0:00:04] Strongly threatening ...d4.} 33. Qd6 $2 {[%emt 0:00:01][%mdl 8192]} (33. Kh2 $17) 33... Qa4 $19 {[%emt 0:00:39]} 34. Rxd5 {[%emt 0:01:54]} Rxd5 {[%emt 0:00:26]} 35. Qxd5 {[%emt 0:00:00]} Qxc2 {[%emt 0:00:10]} 36. Qd7 {[%emt 0:00:00]} Qf5 {[%emt 0:00:10]} (36... Bc1 $142 37. Bxc1 Qxc1+ 38. Kh2 c2) 37. Qb5 {[%emt 0:00:05]} Qb1+ {[%emt 0:00:10]} 38. Kh2 {[%emt 0:00:01]} c2 {[%emt 0:00:30] [#] ( -> ...Bc1)} 39. Qd3+ {[%emt 0:00:11]} Kg8 {[%emt 0:00:01] Weighted Error Value: White=0.95/Black=0.33} 0-1

[Event "Slovakia Open 2022"]
[Site "Bratislava"]
[Date "2022.10.01"]
[Round "5.5"]
[White "Pasti, Aron"]
[Black "Leniart, Arkadiusz"]
[Result "0-1"]
[ECO "C88"]
[WhiteElo "2350"]
[BlackElo "2479"]
[Annotator "TA"]
[PlyCount "84"]
[EventDate "2022.09.30"]
[EventCountry "SVK"]
[SourceTitle "playchess.com"]
[Source "ChessBase"]
[SourceQuality "1"]
[TimeControl "2700+10"]

{[%evp 20,84,23,34,66,7,8,13,56,-20,-23,-31,4,-38,14,0,0,0,12,-2,-10,-15,-3,-26,-24,-116,-110,-279,-262,-271,-281,-457,-113,-111,-120,-98,-98,-102,-89,-115,-128,-122,-89,-120,-116,-225,-231,-233,-226,-589,-558,-518,-447,-447,-447,-442,-439,-29954,-29959,-29949,-5836,-5783,-5783,-4918,-4918,-4770,-4770]} 1. e4 {[%emt 0:00:04]} e5 {[%emt 0:00:01]} 2. Nf3 {[%emt 0:00:02]} Nc6 {[%emt 0:00:02]} 3. Bb5 {[%emt 0:00:02]} a6 {[%emt 0:00:02]} 4. Ba4 {[%emt 0:00:01]} Nf6 {[%emt 0:00:02]} 5. O-O {[%emt 0:00:03]} Be7 {[%emt 0:00:02]} 6. Re1 {[%emt 0:00:02]} b5 {[%emt 0:00:01]} 7. Bb3 {[%emt 0:00:02]} O-O {[%emt 0:00:03]} 8. a4 {[%emt 0:00:04]} Bb7 {[%emt 0:00:07]} 9. Nc3 {[%emt 0:00:45]} Na5 {[%emt 0:02:53]} 10. Ba2 {[%emt 0:00:24]} b4 {[%emt 0:00:47]} 11. Nd5 {[%emt 0:00:29]} b3 {[%emt 0:00:53] C88: Closed Ruy Lopez: Anti-Marshall Systems.} 12. Nxf6+ {[%emt 0:05:23]} ({Better is} 12. Nxe7+ $14 Qxe7 13. cxb3) 12... Bxf6 $11 {[%emt 0:00:01]} 13. cxb3 {[%emt 0:00:01]} Nc6 {[%emt 0:03:56] [#] Against d4. The position is equal.} (13... d5 $5 {[%cal Rd5e4]} 14. d4 Nc6 $11) 14. b4 $146 {[%emt 0:02:27]} (14. d4 $1 $14) ({Predecessor:} 14. d3 Qe7 15. Bd2 a5 16. Rc1 Rfc8 17. Bb1 Ba6 18. d4 Bb7 19. dxe5 Nxe5 20. Nd4 {1-0 (62) Aizenberg,B (2279)-Koelle,T (2340) Tornelo INT 2020}) 14... Nxb4 {[%emt 0:00:06]} 15. d4 {[%emt 0:01:04]} d6 {[%emt 0:00:13]} ({But not} 15... Nxa2 16. dxe5 Nxc1 17. exf6 $11) (15... exd4 {keeps more tension.} 16. e5 Nxa2 17. exf6 Nxc1 18. fxg7 Re8) 16. Bb3 {[%emt 0:02:36]} a5 {[%emt 0:01:53]} ({Black should try} 16... exd4 $15 17. Nxd4 Re8) 17. d5 {[%emt 0:03:04]} c6 {[%emt 0:00:37]} 18. Bd2 {[%emt 0:00:19]} Qb6 {[%emt 0:04:59]} 19. Be3 {[%emt 0:02:21]} Qa6 {[%emt 0:00:58]} 20. dxc6 {[%emt 0:00:41]} Qxc6 {[%emt 0:01:18]} 21. Rc1 {[%emt 0:01:31]} Qxe4 {[%emt 0:02:32]} 22. Rc7 {[%emt 0:00:57]} (22. Bd2 $1 $11 {remains equal.} Qg4 23. h3 Bxf3 24. hxg4 Bxd1 25. Rcxd1) 22... Bd5 $1 $17 {[%emt 0:00:03]} 23. Bc4 $2 {[%emt 0:07:06]} Bxc4 $19 {[%emt 0:00:49]} 24. Nd2 {[%emt 0:00:02]} Qc2 {[%emt 0:08:08]} 25. Nxc4 $2 {[%emt 0:00:22] [#]} (25. Rxc4 Qxd1 26. Rxd1) 25... d5 $2 {[%emt 0:00:04]} (25... Bd8 $1 $19 {is more deadly.} 26. Qxc2 Nxc2) 26. Qxc2 $17 {[%emt 0:00:53]} Nxc2 {[%emt 0:00:02]} 27. Rc1 {[%emt 0:00:46] And now Nb6 would win.} Nxe3 {[%emt 0:00:19]} ({Much worse is} 27... dxc4 $6 28. Rxc2 Rfb8 29. R7xc4 $11 (29. R2xc4 Bd8 $11)) 28. Nxe3 {[%emt 0:00:01]} Rfd8 {[%emt 0:01:23]} 29. R7c5 {[%emt 0:01:29]} d4 {[%emt 0:01:15]} 30. Nc4 {[%emt 0:00:40][%csl LRa5,LRe5]} e4 {[%emt 0:02:09]} 31. Nxa5 {[%emt 0:01:07]} d3 {[%emt 0:00:17] White must now prevent ...Bd4.} 32. b4 {[%emt 0:00:02] [#]} (32. Nc6 $17 {was the only chance.} Rd6 33. b3) 32... Bd4 $1 $19 {[%emt 0:01:06]} 33. R5c4 {[%emt 0:05:22]} e3 {[%emt 0:00:07]} 34. fxe3 {[%emt 0:00:05]} (34. Kf1 {was the crucial defense.} e2+ 35. Ke1) 34... Bxe3+ {[%emt 0:00:03]} 35. Kf1 {[%emt 0:00:10]} Bxc1 {[%emt 0:00:48]} 36. Rxc1 {[%emt 0:00:00][%mdl 4096] Endgame KRR-KRN} Kf8 {[%emt 0:00:55]} 37. Kf2 {[%emt 0:00:32]} Rd5 {[%emt 0:01:09] aiming for ...Re8.} 38. Ke3 {[%emt 0:03:22]} (38. Rd1 $19) 38... d2 {[%emt 0:00:29]} 39. Rd1 {[%emt 0:00:01]} Re8+ {[%emt 0:00:05]} 40. Kf2 {[%emt 0:00:01] Black is clearly winning.} Rf5+ {[%emt 0:01:13]} 41. Kg3 {[%emt 0:00:01]} Re3+ {[%emt 0:00:13]} 42. Kg4 {[%emt 0:00:02]} Rd5 {[%emt 0:00:16] Weighted Error Value: White=0.73/Black=0.26 (precise)} 0-1